Cogmind - Beta 13 X1 @@@ ROGUE MODE // 2023.06.26 @ 01:35:43 Player: maxwell Result: Self-destructed Performance ------------- Evolutions (3) 1500 Regions Visited (5) 1000 Robots Destroyed (51) 255 Value Destroyed (1531) 1531 Prototype IDs (10) 200 Alien Tech Used (0) 0 Bonus (0) 0 TOTAL SCORE: 4486 Bonus ------- None Cogmind --------- Core Integrity 230/700 Matter 37/300 Energy 85/100 System Corruption 5% Temperature Cool (0) Movement Core (1400) Ox27 Location -7/Factory Parts ------- > --- POWER (2+1) ------ (None) > --- PROPULSION (3+1) - (None) > --- UTILITY (6+1) ---- Huge Storage Unit Rainbow Chip > --- WEAPON (2+1) ----- Heavy Mace > --- INVENTORY (25) --- Enhanced Nuclear Core Scrap Engine Improved Cooling System Improved Cooling System Disposable Heat Sink Improved Sensor Array Scrap Shield Cobbler Unit Subdweller Laser Subdweller Beam Cannon Plasma Cannon Light Assault Rifle Subdweller Machine Gun Mini Grenade Launcher Subdweller Shrapnel Launcher Multitool Makeshift Sword Piercing Trap Peak State ------------ > --- POWER ------------ Makeshift Power Source Makeshift Power Source > --- PROPULSION ------- Improved Treads Spiked Treads Improved Titanium Leg > --- UTILITY ---------- Improved Heat Sink Huge Storage Unit Subdweller Optics Light Armor Plating Hardened Light Armor Plating Shield Generator > --- WEAPON ----------- Battle Rifle Slug Cannon > --- INVENTORY -------- Scrap Engine Improved Cooling System Improved Cooling System Disposable Heat Sink Scrap Shield Cobbler Unit Rainbow Chip Subdweller Laser Subdweller Beam Cannon Plasma Cannon Light Assault Rifle Subdweller Machine Gun Heavy Battle Rifle Mini Grenade Launcher Subdweller Shrapnel Launcher Multitool Heavy Mace Makeshift Sword Piercing Trap [Rating: 40] Favorites ----------- Power Ion Engine Engine Ion Engine Propulsion Compact Wheel Treads Light Treads Leg Makeshift Leg Wheel Compact Wheel Utility Huge Storage Unit Device Improved Heat Sink Storage Huge Storage Unit Processor Rainbow Chip Protection Light Armor Plating Weapon Heavy Battle Rifle Energy Gun EM Pulse Gun Ballistic Gun Heavy Battle Rifle Ballistic Cannon Slug Cannon Launcher Mini Grenade Launcher Impact Weapon Heavy Mace Build | -11 -10 -10 -10 -9 -7 ------- Run | Jun Mat Min Sub Rec Fac Slots Evolved 6 | . . . . . 6 Power 1 | . . . . . 1 Propulsion 1 | . . . . . 1 Utility 4 | . . . . . 4 Weapon . | . . . . . . Parts Attached 62 | . 10 . 35 2 15 Power 7 | . 1 . 5 . 1 Engine 7 | . 1 . 5 . 1 Core . | . . . . . . Reactor . | . . . . . . Propulsion 16 | . 2 . 11 2 1 Treads 6 | . 2 . 2 2 . Leg 2 | . . . 1 . 1 Wheel 8 | . . . 8 . . Hover . | . . . . . . Flight . | . . . . . . Utility 19 | . 3 . 8 . 8 Device 8 | . . . 5 . 3 Storage 2 | . 1 . 1 . . Processor 1 | . . . . . 1 Hackware . | . . . . . . Protection 8 | . 2 . 2 . 4 Artifact . | . . . . . . Weapon 20 | . 4 . 11 . 5 Energy Gun 4 | . 4 . . . . Energy Cannon . | . . . . . . Ballistic Gun 12 | . . . 10 . 2 Ballistic Cannon 1 | . . . 1 . . Launcher 1 | . . . . . 1 Special Weapon . | . . . . . . Impact Weapon 2 | . . . . . 2 Slashing Weapon . | . . . . . . Piercing Weapon . | . . . . . . Special Melee Weapon . | . . . . . . Unidentified Prototypes . | . . . . . . Parts Lost 34 | . 5 . 16 1 12 Power 7 | . 1 . 4 . 2 Propulsion 9 | . . . 5 1 3 Utility 9 | . 1 . 4 . 4 Weapon 9 | . 3 . 3 . 3 Highest Loss Streak 7 | . 2 . 4 1 7 To Critical Strikes . | . . . . . . Average Slot Usage (%) 84 | . 99 100 98 92 34 Engine 12 | . 14 14 13 14 4 Treads 7 | . 27 28 2 8 4 Leg 3 | . . . 5 . . Wheel 12 | . . . 20 12 . Device 8 | . . . 12 14 3 Storage 12 | . 14 14 13 14 7 Protection 3 | . 14 14 1 . 2 Energy Gun 4 | . 27 28 . . . Ballistic Gun 14 | . . . 22 14 5 Ballistic Cannon 4 | . . . 5 14 2 Naked Turns . | . . . . . . Heaviest Build 116 | 13 32 30 97 94 116 Greatest Support 43 | 20 40 40 40 43 43 Greatest Overweight (x) 28 | . . . 6 4 28 Average Overweight (x) 3 | . . . 3 3 10 Largest Inventory Capacity 25 | . 15 15 25 25 25 Average Capacity 22 | . 14 15 23 25 25 Most Carried 25 | . 13 13 25 25 25 Average Carried 18 | . 8 13 19 24 22 Final Capacity 25 | 8 15 15 25 25 25 Final Carried 25 | 6 13 13 20 25 21 Class Distribution -------------------- 46% | Subdweller-Mutant 44% | Mutant 5% | Derelict-Mutant Dominant Class ---------------- Mutant | -10/Materials Mutant | -10/Mines Subdweller-Mutant | -10/Subcaves Subdweller-Mutant | -9/Recycling Mutant | -7/Factory Resources | -11 -10 -10 -10 -9 -7 ----------- Run | Jun Mat Min Sub Rec Fac Matter Collected 1534 | 200 87 . 933 175 139 Remotely . | . . . . . . Salvage Created 1637 | . 560 . 739 140 198 Parts 101 | . 38 . 51 8 4 Haulers Intercepted 2 | . 2 . . . . Recyclers Shooed . | . . . . . . Parts Field Recycled . | . . . . . . Retrieved Matter . | . . . . . . Parts Self-Destructed 14 | . . . 14 . . Prevented . | . . . . . . Kills | -11 -10 -10 -10 -9 -7 ------- Run | Jun Mat Min Sub Rec Fac Combat Hostiles Destroyed 42 | . 10 . 22 4 6 Melee 2 | . . . . . 2 Guns 30 | . 8 . 19 2 1 Cannons 7 | . . . 3 2 2 AOE 3 | . 2 . . . 1 Classes Destroyed 14 | . 7 . 4 1 2 Builder 1 | . 1 . . . . Hauler 2 | . 2 . . . . Recycler 1 | . 1 . . . . Operator 1 | . 1 . . . . Turret 2 | . . . 2 . . Watcher 3 | . 3 . . . . Swarmer 11 | . 6 . 4 1 . Grunt 7 | . 4 . 2 . 1 Brawler 1 | . . . . 1 . Sentry 4 | . . . 1 2 1 Programmer 3 | . . . . . 3 Artisan 1 | . . . 1 . . Subdweller 15 | . . . 15 . . Assembled 1 | . . . . . 1 Best Kill Streak 7 | . 3 . 6 7 1 Combat Bots Only 4 | . 2 . 4 3 1 Max Kills in Single Turn 2 | . 2 . 1 1 1 Gunslinging . | . . . . . . Exploded 1 | . 1 . . . 1 Melee 1 | . . . . . 1 Uniques/NPCs Destroyed . | . . . . . . Combat | -11 -10 -10 -10 -9 -7 -------- Run | Jun Mat Min Sub Rec Fac Damage Taken 5354 | . 482 . 2590 160 2122 Core 1420 | . 16 . 573 33 798 Absorbed by Shields 82 | . . . . . 82 Core Remaining (%) 96 | 100 . . . 92 . Volleys Fired 207 | . 49 . 129 14 15 Largest 2 | . 2 . 2 2 2 Hottest 81 | . 80 . 81 73 73 Shots Fired 401 | . 98 . 255 28 20 Gun 346 | . 98 . 222 14 12 Cannon 53 | . . . 33 14 6 Launcher 2 | . . . . . 2 Special . | . . . . . . Kinetic 287 | . . . 241 28 18 Thermal . | . . . . . . Explosive 2 | . . . . . 2 Electromagnetic 112 | . 98 . 14 . . Robot Hit Streak 18 | . 10 . 18 7 6 Robot Miss Streak 6 | . 6 . 3 2 3 Penetration Max . | . . . . . . Secondary Targets 4 | . . . 4 . . Max Gunslinging Chain 1 | . . . 1 . . Shots Hit Robots 232 | . 50 . 148 15 19 Core Hits 84 | . 21 . 48 6 9 Critical Kills 1 | . . . . . 1 Critical Parts Destroyed 4 | . . . . 2 2 Critical Strikes 6 | . 1 . . 2 3 Destroy 2 | . . . . 2 . Corrupt 1 | . 1 . . . . Smash 3 | . . . . . 3 Melee Attacks 10 | . . . . . 10 Impact 10 | . . . . . 10 Slashing . | . . . . . . Piercing . | . . . . . . Sneak Attacks . | . . . . . . Combat Hostiles . | . . . . . . Follow-up Attacks . | . . . . . . Damage Inflicted 3975 | . 978 . 2072 302 623 Guns 2861 | . 754 . 1798 159 150 Cannons 505 | . . . 269 143 93 Explosions 296 | . 219 . . . 77 Melee 303 | . . . . . 303 Ramming 10 | . 5 . 5 . . Kinetic 2569 | . . . 2024 302 243 Thermal 219 | . 219 . . . . Explosive 77 | . . . . . 77 Electromagnetic 797 | . 754 . 43 . . Impact 303 | . . . . . 303 Slashing . | . . . . . . Piercing . | . . . . . . Highest Corruption 5 | . . . . . 5 Average Corruption 2 | . . . . . 2 Corruption Purged . | . . . . . . Corruption Blocked . | . . . . . . Effects 22 | . . . . . 22 Message Errors 4 | . . . . . 4 Matter Fused 7 | . . . . . 7 Heat Flow Errors 7 | . . . . . 7 Data Loss (minor) 1 | . . . . . 1 Data Loss (major) 2 | . . . . . 2 Alerts 1 | . . . . . 1 Overload Shots . | . . . . . . Overflow Damage 118 | . 17 . . . 101 Projectiles . | . . . . . . Explosions 22 | . 17 . . . 5 Melee 96 | . . . . . 96 Knockbacks 1 | . . . 1 . . Impact . | . . . . . . Kinetic 1 | . . . 1 . . Secondary . | . . . . . . Self-Inflicted Damage 131 | . 84 . 2 . 45 Shots 4 | . 3 . . . 1 Rammed 3 | . 2 . 1 . . Targets Rammed 3 | . 2 . 1 . . Kicked . | . . . . . . Crushed . | . . . . . . Highest Temperature 279 | . 269 . 279 46 269 Average Temperature 82 | . 75 . 145 17 110 Received Heat Transfer 1820 | . 108 . 1574 45 93 Effects 1 | . 1 . . . . Energy Bleed 1 | . 1 . . . . Siege Activations . | . . . . . . Robots Corrupted . | . . . . . . Combat Hostiles . | . . . . . . Parts Fried 3 | . 2 . . . 1 Impact Corruptions 4 | . . . . . 4 Robots Melted . | . . . . . . Combat Hostiles . | . . . . . . Parts Melted 1 | . . . 1 . . Heat Transferred 300 | . 300 . . . . Parts Sabotaged . | . . . . . . Parts Stolen . | . . . . . . Parts Stripped . | . . . . . . Power Chain Reactions 6 | . 6 . . . . Missiles Intercepted . | . . . . . . Alert | -11 -10 -10 -10 -9 -7 ------- Run | Jun Mat Min Sub Rec Fac Peak Influence 346 | . 180 31 . 346 74 Initial 273 | . . 31 . 273 60 Average 80 | . 69 31 . 262 27 Maximum Alert Level 1 | . . . . 1 . Low Security (%) 88 | . 100 100 . 36 100 Level 1 11 | . . . . 63 . Level 2 . | . . . . . . Level 3 . | . . . . . . Level 4 . | . . . . . . Level 5 . | . . . . . . High Security . | . . . . . . Max Security . | . . . . . . Squads Dispatched 5 | . . . . . 5 Investigation . | . . . . . . Extermination 4 | . . . . . 4 Reinforcement 1 | . . . . . 1 Assault . | . . . . . . Garrison . | . . . . . . Intercept . | . . . . . . Searches Triggered . | . . . . . . Construction Impeded . | . . . . . . Haulers Reinforced . | . . . . . . Active Scanning Responses . | . . . . . . Cargo Convoy Interrupts . | . . . . . . Stealth | -11 -10 -10 -10 -9 -7 --------- Run | Jun Mat Min Sub Rec Fac Distress Signals 2 | . 1 . . . 1 Communications Jammed . | . . . . . . Distress Signals . | . . . . . . Times Spotted 98 | . 17 . 44 3 34 Peak Tracking Total 12 | . 3 . 5 3 12 Tactical Retreats 9 | . 2 . 3 . 4 Traps | -11 -10 -10 -10 -9 -7 ------- Run | Jun Mat Min Sub Rec Fac Traps Triggered 4 | . . . 4 . . Indirectly . | . . . . . . Trap Hack Attempts . | . . . . . . Triggered . | . . . . . . Disarmed . | . . . . . . Reprogrammed . | . . . . . . Reused . | . . . . . . Traps Extracted . | . . . . . . Installed . | . . . . . . Triggered 1 | . 1 . . . . Most Traps Carried 1 | . . . . . 1 Machines | -11 -10 -10 -10 -9 -7 ---------- Run | Jun Mat Min Sub Rec Fac Machines Disabled 3 | . 1 . 2 . . Max in Single Turn 1 | . 1 . 1 . . Machines Repaired . | . . . . . . Machines Sabotaged . | . . . . . . Overloaded Fab Kills . | . . . . . . Hacking | -11 -10 -10 -10 -9 -7 --------- Run | Jun Mat Min Sub Rec Fac Machines Accessed 3 | . 2 . 1 . . Terminals 2 | . 2 . . . . Fabricators . | . . . . . . Repair Stations . | . . . . . . Recycling Units . | . . . . . . Scanalyzers . | . . . . . . Garrison Access . | . . . . . . Total Hacks 18 | . 9 . 9 . . Successful 15 | . 6 . 9 . . Failed 3 | . 3 . . . . Catastrophic 1 | . 1 . . . . Database Lockouts . | . . . . . . Manual 8 | . 8 . . . . Terminals 9 | . 9 . . . . Fabricators . | . . . . . . Repair Stations . | . . . . . . Recycling Units . | . . . . . . Scanalyzers . | . . . . . . Garrison Access . | . . . . . . Terminal Hacks 12 | . 3 . 9 . . Record 8 | . . . 8 . . Robot Analysis 2 | . 2 . . . . Branch Access Points 1 | . 1 . . . . Derelict Proto ID Bank 1 | . . . 1 . . Fabricator Hacks . | . . . . . . Repair Station Hacks . | . . . . . . Recycling Unit Hacks . | . . . . . . Scanalyzer . | . . . . . . Garrison Access Hacks . | . . . . . . Unauthorized Hacks 3 | . 3 . . . . Terminals 3 | . 3 . . . . Track 1 | . 1 . . . . Botnet 2 | . 2 . . . . Fabricators . | . . . . . . Repair Stations . | . . . . . . Recycling Units . | . . . . . . Scanalyzers . | . . . . . . Garrison Access . | . . . . . . Data Cores Recovered 1 | . 1 . . . . Used . | . . . . . . Hacking Detections 2 | . 2 . . . . Full Trace Events . | . . . . . . Feedback Events . | . . . . . . Feedback Blocked . | . . . . . . Robot Schematics Acquired . | . . . . . . Robots Built . | . . . . . . Authchips . | . . . . . . Time . | . . . . . . Total Robot Build Rating . | . . . . . . Part Schematics Acquired . | . . . . . . Parts Built . | . . . . . . Authchips . | . . . . . . Time . | . . . . . . Total Part Build Rating . | . . . . . . Parts Repaired . | . . . . . . Time . | . . . . . . Parts Recycled . | . . . . . . Recycled Matter . | . . . . . . Retrieved Matter . | . . . . . . Retrieved Components . | . . . . . . Parts Scanalyzed . | . . . . . . Part Schematics Acquired . | . . . . . . Parts Damaged . | . . . . . . Bothacking | -11 -10 -10 -10 -9 -7 ------------ Run | Jun Mat Min Sub Rec Fac Used RIF Installer . | . . . . . . Robots Hacked . | . . . . . . Non-combat . | . . . . . . Combat . | . . . . . . Robot Hacks Applied . | . . . . . . Relay Couplers Released . | . . . . . . Fabnet Peak Effective % . | . . . . . . Robots Rewired 4 | . . . . 4 . Allies Hacked . | . . . . . . Hacks Repelled . | . . . . . . Allies | -11 -10 -10 -10 -9 -7 -------- Run | Jun Mat Min Sub Rec Fac Total Allies 4 | . . . . 4 . Largest Group 4 | . . . . 4 4 Highest-Rated Group 55 | . . . . 55 55 Highest-Rated Ally 21 | . . . . 21 21 Total Orders . | . . . . . . Ally Attacks 14 | . . . . . 14 Total Damage 140 | . . . . . 140 Kills . | . . . . . . Allies Corrupted . | . . . . . . Allies Melted . | . . . . . . Intel | -11 -10 -10 -10 -9 -7 ------- Run | Jun Mat Min Sub Rec Fac Robot Analysis Total 2 | . 2 . . . . Derelict Logs Recovered 1 | . . . 1 . . Drone Launches . | . . . . . . Drone Recoveries . | . . . . . . Exploration | -11 -10 -10 -10 -9 -7 ------------- Run | Jun Mat Min Sub Rec Fac Turns Passed 7815 | . 1034 294 4226 626 1635 Spaces Moved 3577 | 1 494 180 2397 295 210 Core 71 | . . . . . 71 Treads 999 | . 476 180 147 58 138 Legs 20 | 1 18 . . . 1 Wheels 2487 | . . . 2250 237 . Hover . | . . . . . . Flight . | . . . . . . Fastest Speed 105 | 120 120 160 105 129 340 Average Speed 189 | 120 158 160 152 182 713 Slowest Speed 1450 | 120 160 160 240 340 1450 Overloaded Moves . | . . . . . . Propulsion Burnouts . | . . . . . . Robots Hopped . | . . . . . . Cave-ins Triggered . | . . . . . . Exploration Rate (%) 51 | 2 84 56 93 64 7 Regions Visited 5 Branch Regions 3 Pre-discovered Areas . | . . . . . . Known Exits Taken 1 | . 1 . . . . Unknown Exits Taken 4 | 1 . 1 1 1 . Scrap Searched 16 | . . . 16 . . Spaces Dug 1 | . . . 1 . . Terrain Destroyed 42 | . 18 . 8 3 13 Melee . | . . . . . . Projectile 13 | . . . 8 3 2 AOE 29 | . 18 . . . 11 Terrain Rammed . | . . . . . . Walls Destroyed . | . . . . . . Machines Disabled . | . . . . . . Actions | -11 -10 -10 -10 -9 -7 --------- Run | Jun Mat Min Sub Rec Fac Total 4212 | . 647 186 2709 361 309 Wait 211 | . 75 7 78 2 49 Move 3572 | . 493 179 2396 294 210 Hop . | . . . . . . Pick Up 71 | . 14 . 44 7 6 Fast Attach 10 | . 2 . 7 . 1 Attach 44 | . 7 . 25 2 10 Detach 1 | . . . . . 1 Swap 8 | . 1 . 3 . 4 Drop 33 | . 4 . 24 2 3 Fire 207 | . 49 . 129 14 15 Melee 10 | . . . . . 10 Ram 1 | . . . 1 . . Kick . | . . . . . . Crush 2 | . 2 . . . . Escape Stasis . | . . . . . . Rewire 40 | . . . . 40 . Trap . | . . . . . . Miscellaneous 2 | . . . 2 . . Route ------- -11/Junkyard -10/Materials (discovered 5 exits: [*Mat x3] / *Min x2) -10/Mines (discovered 2 exits: [*Mat] / *Sub) -10/Subcaves (discovered 3 exits: [*Mat] / [*Mat] / [*Rec]) -9/Recycling -7/Factory (discovered 2 exits: [*Fac] / [*Low]) History --------- Turn | Location | Event 1 | -11/Junkyard | Discovered new exit (range 0) 1 | -11/Junkyard | Entered Materials 1 | -10/Materials | Discovered new exit (range 8) 212 | -10/Materials | Identified exit to Mines 273 | -10/Materials | Discovered new exit (range 15) 308 | -10/Materials | Build established: Mutant 426 | -10/Materials | Discovered new exit (range 15) 696 | -10/Materials | Discovered new exit (range 13) 1035 | -10/Materials | Entered Mines 1176 | -10/Mines | Deemed a non-threat by the Exiles lab entrance 1288 | -10/Mines | Discovered new exit (range 3) 1309 | -10/Mines | Discovered new exit (range 10) 1329 | -10/Mines | Entered Subcaves 1345 | -10/Subcaves | Learned Materials emergency access door positions 1417 | -10/Subcaves | Lost 4 parts (1p2n1u) 1561 | -10/Subcaves | Core integrity fell below 50% 1581 | -10/Subcaves | Disturbed a concealed Subdweller 1740 | -10/Subcaves | Core integrity fell below 20% 2229 | -10/Subcaves | Shifting Twisted Machinery released Sub. Shrapnel Launcher 2234 | -10/Subcaves | Shifting Twisted Machinery released Shrapnel Trap 2258 | -10/Subcaves | Discovered new exit (range 9) 2541 | -10/Subcaves | Shifting Twisted Machinery released Sub. Laser 2569 | -10/Subcaves | Shifting Twisted Machinery released Battle Cannon 2569 | -10/Subcaves | Shifting Twisted Machinery released Battle Rifle 2778 | -10/Subcaves | Build established: Subdweller-Mutant 3256 | -10/Subcaves | Discovered new exit (range 15) 4383 | -10/Subcaves | A swath of the cavern ceiling suddenly collapsed 4674 | -10/Subcaves | A swath of the cavern ceiling suddenly collapsed 4866 | -10/Subcaves | Visited 4L-MR0's lab 4886 | -10/Subcaves | Found Rainbow Chip 5518 | -10/Subcaves | Discovered new exit (range 13) 5555 | -10/Subcaves | Entered Recycling 5555 | -9/Recycling | Found Scrap Engine 5565 | -9/Recycling | Lost 3 parts (1p1n1w) 6164 | -9/Recycling | Discovered new exit (range 6) 6181 | -9/Recycling | Entered Factory 6181 | -7/Factory | Accompanied by 4 allies 6181 | -7/Factory | Evolved 6 slots: Power x1, Propulsion x1, Utility x4 6182 | -7/Factory | Core integrity fell below 50% 6483 | -7/Factory | Discovered new exit (range 7) 6518 | -7/Factory | Build established: Derelict-Mutant 6706 | -7/Factory | Lost 7 parts (1p1n3u2w) 6796 | -7/Factory | Lost 4 parts (1p2n1u) 6979 | -7/Factory | Discovered new exit (range 11) 7020 | -7/Factory | Build established: Mutant 7816 | -7/Factory | Attached Rainbow Chip, gained temporary slots: Power, Propulsion, Utility, Weapon 7816 | -7/Factory | Self-destructed Last Messages --------------- 07628_ P-60 Hacker suffers critical hit (Smash). 07628_ Destroyed Shock Rifle. 07628_ P-60 Hacker system corrupted by crushing effect. 07633_ System corrupted: Matter fused (-6). 07649_ P-60 Hacker heat short circuits Gravmag System. 07650_ P-60 Hacker heat damages Mic. Nuclear Core, Broken Gravmag System. 07657_ P-60 Hacker heat short circuits Mic. Nuclear Core. 07681_ ALERT: Rogue bot located, Programmers report to Factory Zone 2N. 07686_ System corrupted: Heat flow error (+260). 07729_ System corrupted: Substantial component data lost. 07729_ P-60 Hacker suffers critical hit (Smash). 07729_ Target Analyzer fried. 07729_ P-60 Hacker destroyed. 07731_ Acquired 31 matter. 07768_ System corrupted: Heat flow error (+164). 07809_ NUZ||AWV|ORF3PGD=UJQCSD8|7BP&R7 07816_ Core temporarily expanded with Power slot. 07816_ Core temporarily expanded with Propulsion slot. 07816_ Core temporarily expanded with Utility slot. 07816_ Core temporarily expanded with Weapon slot. Map ----- +----------------------------------------------------+ | | | | | | | | | ?????????????????????????????????????? | | ??????????????????????#######???###### | | ??????????????????????# ##### | | ????????????########### | | ????????????# < | | ????????????# ######### ! | | ?????????#### #???????# ##### | | ?????????# #?????#####+#####?#### # | | ?????????# ####?????# #????# # | | ?????????# #????????# / #????# # | | ??######?# #????????# #????# | | ??# # #????????# #???## | | ??# # ###########+############! | | ??# + ! | | ??# # ######################## | | ??# ] # #??????????????????????## # | | ??# ?# #???????????????????????# # | | ??######?# #???????????????????????# " | | ?????????# ###?????????????????????# # | | ?????????# #?????????????????????# | | ?????????# #########?????????????# | | ?????????# @ #????????????# | | ?????????# #????????????# | | ?????????# #????????????+ | | ???????? #????????????### | | ?????? #??????????????? | | ?????# +??????????????? | | ?????# #??????????????? | | ?????# #??????????????? | | ?????# ###########p ##??????????????? | | ?????# ??????????? #???????????????? | | ?????#????????????? #???????????????? | | ??????????????????? #???????????????? | | ???????????????????? #???????????????? | | ?????????????????????????????????????? | | ?????????????????????????????????????? | | ?????????????????????????????????????? | | ?????????????????????????????????????? | | ?????????????????????????????????????? | | ?????????????????????????????????????? | | ?????????????????????????????????????? | | ?????????????????????????????????????? | | ?????????????????????????????????????? | | ?????????????????????????????????????? | | ?????????????????????????????????????? | | ?????????????????????????????????????? | +----------------------------------------------------+ Best States ------------- Heat Dissipation 48 Coolant Potential 50 Energy Generation 25 Energy Capacity 250 Matter Stores 300 Matter Capacity 300 Sight Range 21 Terrain Scan Density 10 Armor Coverage 800 Evasion (%) 55 Recoil Reduction 2 Item Schematics ----------------- None Robot Schematics ------------------ None Fabricated ------------ Nothing Alien Tech Used ----------------- None Achievements -------------- None Challenges ------------ None Game ------ Seed BlastFireMegatreads Manual? 0 Play Time 00:33:51 Cumulative 367.1 hours Start 2023.06.26 @ 01:01:54 End 2023.06.26 @ 01:35:43 Sessions 1 Manual Loads 0 Difficulty Rogue Special Mode None Game No. 530 Rogue 503 Adventurer 4 Explorer 23 Win Type - Total 20 Types 14/0/2/2/1/0/0/1/0 Lore% 79 Gallery% 91 Achievement% 83 Wizard Run 0 Options --------- ASCII 0 Keyboard 1 Movement Numpad Keybinds 0 Fullscreen 1 Font 18/SmallcapsGlow Map View 76x50 Tactical HUD 1 Map Filters NONE Filters NONE Steam 1 RUN: 92ded6af-f72e-44f2-88a3-9d3bd8516c87